fUST/lending_fUST_20250815
["ID","MTS","AMOUNT","RATE_DAILY","PERIOD"]
[379235238,1755204636299,-460.0,0.00017998,2]
[379235239,1755204636308,-460.0,0.00018045,2]
[379235240,1755204636318,-460.0,0.00018046,2]
[379235241,1755204636328,-479.14386815,0.00018239,2]
[379235242,1755204636338,-460.0,0.00018272,2]
[379235244,1755204636347,-460.0,0.00018319,2]
[379235246,1755204636356,-216.75489391,0.0001832,2]
[379235248,1755204636366,-350.24474933,0.0001832,2]
[379235250,1755204636375,-160.0,0.0001832,2]
[379235252,1755204636384,-460.0,0.00018546,2]
[379235254,1755204636393,-460.0,0.00018593,2]
[379235256,1755204636402,-297.7648801,0.0001882,2]
[379235257,1755204636412,-460.0,0.00018867,2]
[379235259,1755204636422,-460.0,0.00019141,2]
[379235261,1755204636431,-666.0,0.00019178,2]
[379235263,1755204636440,-460.0,0.00019415,2]
[379235265,1755204636450,-151.0,0.00019445,2]
[379235267,1755204636460,-2475.41589463,0.000195,2]
[379235269,1755204636469,-151.0,0.00019642,2]
[379235271,1755204636479,-38.18251088,0.00019689,2]
[379235312,1755204638575,-460.0,0.0001824,2]
[379235314,1755204638585,-421.81748912,0.00019689,2]
[379235316,1755204638594,-151.0,0.00019712,2]
[379235319,1755204638604,-160.0,0.00019897,2]
[379235321,1755204638614,-300.0,0.00019897,2]
[379235323,1755204638624,-84.52160521,0.00019897,2]
[379235325,1755204638636,-147.53476604,0.00019897,2]
[379235327,1755204638646,-460.0,0.00019899,2]
[379235329,1755204638655,-151.0,0.000199,2]
[379235331,1755204638665,-151.0,0.000199,2]
[379235333,1755204638674,-151.0,0.000199,2]
[379235335,1755204638683,-151.0,0.000199,2]
[379235337,1755204638693,-460.0,0.00019963,2]
[379235339,1755204638702,-160.0,0.0002,3]
[379235341,1755204638713,-151.0,0.0002,2]
[379235343,1755204638723,-151.0,0.0002,2]
[379235345,1755204638732,-151.0,0.0002,2]
[379235347,1755204638742,-151.0,0.0002,2]
[379235349,1755204638752,-151.0,0.0002,2]
[379235351,1755204638761,-151.0,0.0002,2]
[379235353,1755204638774,-151.0,0.0002,2]
[379235355,1755204638785,-151.0,0.0002,2]
[379235357,1755204638795,-151.0,0.00020167,2]
[379235359,1755204638804,-219.682016,0.00020167,2]
[379235361,1755204638816,-160.0,0.00020167,3]
[379235363,1755204638826,-460.0,0.00020173,2]
[379235365,1755204638836,-460.0,0.00020237,2]
[379235367,1755204638849,-460.0,0.00020447,2]
[379235369,1755204638859,-460.0,0.00020511,2]
[379235371,1755204638868,-460.0,0.00020721,2]
[379235373,1755204638877,-460.0,0.00020785,2]
[379235375,1755204638886,-242.833482,0.00020812,2]
[379235377,1755204638895,-24040.59112898,0.0002096,3]
[379235379,1755204638904,-460.0,0.00020995,2]
[379235381,1755204638915,-460.0,0.00021059,2]
[379235383,1755204638924,-460.0,0.00021269,2]
[379235386,1755204638934,-460.0,0.00021333,2]
[379235388,1755204638943,-747.34,0.00021484,2]
[379235390,1755204638953,-460.0,0.00021543,2]
[379235391,1755204638962,-1063.52987523,0.00021544,2]
[379235393,1755204638972,-121612.70470081,0.000216,2]
[379235406,1755204639076,-8494.99597,0.000216,2]
[379235488,1755204641401,-83582.542198,0.000216,2]
[379235489,1755204641413,-57688.25794177,0.000216,2]
[379235490,1755204641834,-843.37884167,0.00019897,2]
[379235491,1755204641843,-12758.12629933,0.000216,2]
[379235527,1755204646379,-16985.653277,0.000216,2]
[379235528,1755204646395,-458.45965161,0.000216,2]
[379235529,1755204646759,-2315.103177,0.000216,2]
[379235652,1755204650230,420.43439936,0.0003,120]
[379235655,1755204695325,280.28959958,0.0003,120]
[379235656,1755204740225,186.85973305,0.0003,120]
[379235657,1755204785033,186.85973305,0.0003,120]
[379235667,1755205562247,5000.0,0.00022961,30]
[379235686,1755205832099,-300.0,0.0001731,2]
[379235687,1755205832109,-300.0,0.0001731,2]
[379235688,1755205832119,-300.0,0.0001731,2]
[379235689,1755205832128,-117.24525968,0.00017311,2]
[379235704,1755205832248,-655.75474032,0.00017311,2]
[379235706,1755205832298,-238.0,0.00017311,2]
[379235708,1755205832308,-1200.0,0.00017311,2]
[379235710,1755205832318,-6646.74521581,0.00017312,2]
[379235713,1755205832328,-160.0,0.00017327,2]
[379235714,1755205832338,-160.0,0.00017327,2]
[379235717,1755205832348,-216.75489391,0.00017327,2]
[379235718,1755205832358,-232.05637125,0.00017327,2]
[379235719,1755205832367,-843.37884167,0.00017327,2]
[379235721,1755205832377,-200.0,0.00017658,2]
[379235722,1755205832386,-200.0,0.00017658,2]
[379235723,1755205832396,-200.0,0.00017658,2]
[379235724,1755205832405,-200.0,0.00017658,2]
[379235725,1755205832415,-200.0,0.00017658,2]
[379235726,1755205832424,-200.0,0.00017658,2]
[379235727,1755205832434,-408.0,0.00018034,2]
[379235728,1755205832444,-231.0123172,0.00018079,2]
[379235729,1755205832453,-179.83814567,0.00018176,2]
[379235730,1755205832462,-460.0,0.00018239,2]
[379235731,1755205832472,-460.0,0.00018513,2]
[379235732,1755205832482,-460.0,0.00018787,2]
[379235733,1755205832492,-420.0,0.000189,2]
[379235734,1755205832502,-500.0,0.00019,2]
[379235735,1755205832511,-398.37358038,0.00019061,2]
[379235736,1755205832520,-666.0,0.00019178,2]
[379235737,1755205832530,-218.60189711,0.00019395,2]
[379235738,1755205832539,-200.0,0.00019396,20]
[379235739,1755205832548,-200.0,0.00019396,20]
[379235740,1755205832557,-200.0,0.00019396,20]
[379235741,1755205832566,-200.0,0.00019396,20]
[379235742,1755205832576,-200.0,0.00019396,20]
[379235743,1755205832585,-200.0,0.00019396,20]
[379235744,1755205832595,-200.0,0.00019396,20]
[379235745,1755205832605,-280.0,0.00019396,20]
[379235746,1755205832614,-151.0,0.00019477,2]
[379235747,1755205832623,-151.28597799,0.00019477,2]
[379235748,1755205832632,-151.0,0.00019477,2]
[379235749,1755205832642,-151.0,0.00019477,2]
[379235750,1755205832652,-151.0,0.00019477,2]
[379235751,1755205832661,-151.0,0.00019477,2]
[379235752,1755205832670,-12385.94397555,0.00019477,2]
[379235754,1755205832682,-2283.51549225,0.00019477,2]
[379235755,1755205832693,-2750.0,0.00019477,2]
[379235756,1755205832705,-423.0629802,0.00019477,2]
[379235757,1755205832714,-151.0,0.00019477,2]
[379235758,1755205832725,-151.0,0.00019477,2]
[379235759,1755205832735,-151.0,0.00019477,2]
[379235760,1755205832745,-151.0,0.00019477,2]
[379235761,1755205832754,-151.0,0.00019477,2]
[379235762,1755205832764,-151.0,0.00019477,2]
[379235763,1755205832773,-151.0,0.00019477,2]
[379235764,1755205832783,-151.0,0.00019477,2]
[379235765,1755205832792,-151.0,0.00019477,2]
[379235766,1755205832801,-151.0,0.00019477,2]
[379235767,1755205832810,-151.0,0.00019477,2]
[379235768,1755205832820,-460.0,0.00019499,2]
[379235769,1755205832829,-460.0,0.00019773,2]
[379235770,1755205832838,-659.574279,0.00019863,2]
[379235771,1755205832847,-659.574279,0.00019863,2]
[379235772,1755205832857,-568.167015,0.00019863,2]
[379235773,1755205832866,-659.574279,0.00019938,2]
[379235774,1755205832875,-659.574279,0.00019938,2]
[379235775,1755205832885,-659.574279,0.0002,2]
[379235776,1755205832894,-659.574279,0.0002,2]
[379235777,1755205832903,-659.574279,0.0002,2]
[379235778,1755205832912,-659.574279,0.0002,2]
[379235779,1755205832923,-76.79848479,0.0002,2]
[379235807,1755205838465,-582.77579421,0.0002,2]
[379235808,1755205838475,-659.574279,0.0002,2]
[379235809,1755205838485,-659.574279,0.0002,2]
[379235810,1755205838494,-659.574279,0.0002,2]
[379235811,1755205838503,-160.0,0.0002,3]
[379235812,1755205838513,-202.88055926,0.00020047,2]
[379235813,1755205838523,-593.231,0.00020464,2]
[379235814,1755205838531,-659.574279,0.00020513,2]
[379235815,1755205838541,-659.574279,0.00020513,2]
[379235816,1755205838550,-587.0,0.00020637,2]
[379235817,1755205838559,-147.86741984,0.00020861,2]
[379235818,1755205838571,-1369.77412244,0.00020861,2]
[379235819,1755205838582,-848.11163455,0.00020861,2]
[379235820,1755205838591,-186.85973306,0.00020952,2]
[379235821,1755205838601,-659.574279,0.00021,2]
[379235822,1755205838611,-659.574279,0.00021,2]
[379235823,1755205838620,-150.0,0.00021,2]
[379235824,1755205838629,-408.0,0.00021034,2]
[379235825,1755205838639,-659.574279,0.0002106,2]
[379235826,1755205838649,-659.574279,0.0002106,2]
[379235827,1755205838658,-659.574279,0.0002115,2]
[379235828,1755205838668,-659.574282,0.0002115,2]
[379235829,1755205838677,-160.0,0.00021157,2]
[379235830,1755205838687,-500.0,0.00021173,2]
[379235831,1755205838696,-200.0,0.00021305,20]
[379235832,1755205838705,-200.0,0.00021305,20]
[379235833,1755205838715,-200.0,0.00021305,20]
[379235834,1755205838725,-200.0,0.00021305,20]
[379235835,1755205838734,-200.0,0.00021305,20]
[379235836,1755205838744,-200.0,0.00021305,20]
[379235837,1755205838753,-200.0,0.00021305,20]
[379235838,1755205838762,-200.0,0.00021305,20]
[379235839,1755205838771,-200.0,0.00021305,20]
[379235840,1755205838781,-200.0,0.00021305,20]
[379235841,1755205838790,-350.0,0.00021305,20]
[379235842,1755205838799,-500.0,0.0002137,2]
[379235843,1755205838808,-737.83,0.00021411,2]
[379235844,1755205838817,-33608.66378982,0.000216,2]
[379235845,1755205838829,-15682.4772903,0.000216,2]
[379235846,1755205838840,-4414.58744125,0.000216,2]
[379235847,1755205838851,-1824.2842084,0.000216,2]
[379235848,1755205838863,-4097.80733666,0.000216,2]
[379235849,1755205838874,-522.71292882,0.000216,2]
[379235850,1755205838885,-18218.45804319,0.000216,2]
[379235862,1755205839791,-654.4603919,0.000216,2]
[379235863,1755205839846,-2454.96186153,0.000216,2]
[379235872,1755205843011,-468.942,0.000216,2]
[379235889,1755205846199,-6993.8964245,0.000216,2]
[379235892,1755205876627,268.738719,0.00013699,2]
[379236006,1755206919651,255.301783,0.00013699,2]
[379236038,1755207036028,-179.92800723,0.00018394,2]
[379236039,1755207036038,-2093.37803687,0.00018394,2]
[379236040,1755207036049,-1790.76022834,0.00018394,2]
[379236041,1755207036058,-300.0,0.00018494,2]
[379236042,1755207036068,-429.0,0.00018494,2]
[379236043,1755207036077,-971.0,0.00018495,2]
[379236044,1755207036086,-2151.0,0.00018495,2]
[379236045,1755207036096,-636.0,0.00018495,2]
[379236046,1755207036105,-408.0,0.00018495,2]
[379236047,1755207036114,-200.0,0.00018864,20]
[379236048,1755207036124,-200.0,0.00018864,20]
[379236049,1755207036134,-200.0,0.00018864,20]
[379236050,1755207036143,-200.0,0.00018864,20]
[379236051,1755207036152,-200.0,0.00018864,20]
[379236052,1755207036162,-75.31906249,0.00018864,20]
[379236053,1755207036173,-124.68093751,0.00018864,20]
[379236054,1755207036183,-665.12931224,0.000189,2]
[379236092,1755207038452,-1389.02341481,0.000189,2]
[379236094,1755207038462,-2200.0,0.00018936,2]
[379236096,1755207038471,-3000.0,0.000192,2]
[379236098,1755207038481,-3000.0,0.000192,2]
[379236100,1755207038490,-3000.0,0.000192,2]
[379236102,1755207038499,-666.0,0.00019276,2]
[379236104,1755207038510,-460.0,0.00019395,2]
[379236106,1755207038519,-460.0,0.00019669,2]
[379236108,1755207038529,-460.0,0.0001976,2]
[379236110,1755207038538,-454.533612,0.00019863,2]
[379236112,1755207038547,-460.0,0.00019943,2]
[379236115,1755207038555,-160.0,0.0002,3]
[379236117,1755207038564,-460.0,0.00020034,2]
[379236119,1755207038574,-420.0,0.00020169,2]
[379236121,1755207038583,-255.301783,0.00020187,2]
[379236123,1755207038592,-460.0,0.00020217,2]
[379236125,1755207038601,-460.0,0.00020308,2]
[379236127,1755207038611,-460.0,0.00020491,2]
[379236129,1755207038620,-728.44,0.00020526,2]
[379236131,1755207038630,-460.0,0.00020582,2]
[379236133,1755207038641,-474.585,0.00020625,2]
[379236135,1755207038654,-200.0,0.00020717,20]
[379236137,1755207038663,-200.0,0.00020717,20]
[379236139,1755207038672,-200.0,0.00020717,20]
[379236141,1755207038683,-200.0,0.00020717,20]
[379236143,1755207038693,-200.0,0.00020717,20]
[379236145,1755207038702,-200.0,0.00020717,20]
[379236147,1755207038711,-200.0,0.00020717,20]
[379236149,1755207038723,-280.0,0.00020717,20]
[379236151,1755207038735,-460.0,0.00020765,2]
[379236153,1755207038744,-460.0,0.00020856,2]
[379236155,1755207038753,-288.21757452,0.00021039,2]
[379236157,1755207038763,-460.0,0.0002113,2]
[379236159,1755207038772,-460.0,0.00021404,2]
[379236161,1755207038781,-632.59084688,0.00021475,2]
[379236163,1755207038790,-408.0,0.00021495,2]
[379236165,1755207038800,-160.0,0.00021574,2]
[379236167,1755207038810,-160.0,0.00021574,2]
[379236169,1755207038819,-232.05637125,0.00021575,2]
[379236171,1755207038828,-216.75489391,0.00021575,2]
[379236173,1755207038838,-843.37884167,0.00021575,2]
[379236175,1755207038848,-98662.21903578,0.000216,2]
[379236177,1755207038860,-391.36325295,0.000216,2]
[379236179,1755207038871,-8081.5839643,0.000216,2]
[379236182,1755207038882,-2000.0,0.000216,2]
[379236399,1755207041622,-5940.99928097,0.000216,2]
[379236401,1755207041633,-359.50100004,0.000216,2]
[379236533,1755207043256,-3481.18019382,0.000216,2]
[379236535,1755207043271,-600.0,0.000216,2]
[379236537,1755207043283,-89999.9999996,0.000216,2]
[379236778,1755207046285,-245.24,0.00020525,2]
[379236780,1755207046295,-5645.06,0.000216,2]
[379237466,1755207317818,3426.35,0.0003013,120]
[379237473,1755208159189,-408.0,0.00018929,2]
[379237474,1755208159714,-216.75489391,0.0001919,2]
[379237475,1755208159735,-232.05637125,0.0001919,2]
[379237476,1755208159756,-843.37884167,0.0001919,2]
[379237477,1755208159777,-160.0,0.0001919,2]
[379237478,1755208159798,-2042.16989317,0.000192,2]
[379237527,1755208232426,-407.7187962,0.00019189,2]
[379237539,1755208232495,-269.41394746,0.00019189,2]
[379237547,1755208232566,-166.24609801,0.00019189,2]
[379237549,1755208232576,-203.83156559,0.000192,2]
[379237551,1755208232586,-2604.912,0.00019301,2]
[379237554,1755208232595,-460.0,0.00019759,2]
[379237556,1755208232605,-666.0,0.00019873,2]
[379237558,1755208232614,-363.626889,0.00019943,2]
[379237560,1755208232623,-460.0,0.00020033,2]
[379237562,1755208232633,-460.0,0.00020307,2]
[379237564,1755208232642,-719.17,0.00020555,2]
[379237566,1755208232652,-460.0,0.00020581,2]
[379237568,1755208232661,-300.0,0.0002069,2]
[379237570,1755208232671,-200.0,0.00020691,20]
[379237573,1755208232680,-200.0,0.00020691,20]
[379237575,1755208232689,-200.0,0.00020691,20]
[379237577,1755208232699,-200.0,0.00020691,20]
[379237579,1755208232708,-200.0,0.00020691,20]
[379237581,1755208232717,-200.0,0.00020691,20]
[379237583,1755208232727,-200.0,0.00020691,20]
[379237585,1755208232737,-200.0,0.00020691,20]
[379237587,1755208232746,-460.0,0.00020855,2]
[379237589,1755208232755,-460.0,0.00021129,2]
[379237591,1755208232764,-460.0,0.00021403,2]
[379237593,1755208232774,-66732.26137739,0.000216,2]
[379237983,1755208238274,-22334.49999995,0.000216,2]
[379237984,1755208238287,-59074.45193934,0.000216,2]
[379237985,1755208238298,-451.4535929,0.000216,2]
[379237988,1755208238335,-4191.90760005,0.000216,2]
[379238020,1755208244393,-3773.45133041,0.000216,2]
[379238053,1755208246378,-7049.8,0.000216,2]
[379238054,1755208246389,-4879.20204146,0.000216,2]
[379238055,1755208246440,-8620.33999996,0.000216,2]
[379238072,1755208445434,239.012749,0.00013699,2]
[379238088,1755209363186,-408.0,0.00018929,2]
[379238089,1755209363709,-160.0,0.00019189,2]
[379238090,1755209363730,-461.9529908,0.00019189,2]
[379238091,1755209363752,-160.0,0.00019189,2]
[379238092,1755209363774,-790.6270092,0.00019191,2]
[379238183,1755209435627,-429.82180201,0.000189,2]
[379238184,1755209435654,-1050.77380285,0.000189,2]
[379238185,1755209435665,-334.45663185,0.0001919,2]
[379238194,1755209438429,-508.92220982,0.0001919,2]
[379238195,1755209438439,-239.012749,0.00020187,2]
[379238196,1755209438448,-290.901511,0.00020252,2]
[379238197,1755209438458,-710.01,0.00020527,2]
[379238198,1755209438467,-666.0,0.00020528,2]
[379238199,1755209438478,-300.0,0.00021599,2]
[379238200,1755209438487,-214.0,0.00021599,2]
[379238201,1755209438496,-300.0,0.00021599,2]
[379238202,1755209438506,-1200.0,0.00021599,2]
[379238203,1755209438516,-12525.8997219,0.000216,2]
[379238204,1755209438528,-11781.0,0.000216,2]
[379238205,1755209438561,-10872.32536466,0.000216,2]
[379238206,1755209438576,-4767.20245222,0.000216,2]
[379238207,1755209438587,-3237.89734047,0.000216,2]
[379238412,1755209443999,-387.67013468,0.000216,2]
[379238413,1755209444010,-1253.33036194,0.000216,2]
[379238440,1755209446465,-11774.0,0.000216,2]
[379238453,1755209500723,223.428501,0.00013699,2]
[379238461,1755209697078,11408.0,0.0003013,120]
[379238463,1755209770333,94282.256967,0.0001644,5]
[379238464,1755209797237,118047.29719332,0.000176,6]
[379238467,1755209974042,95000.0,0.00028312,60]
[379238469,1755210005634,91000.0,0.00023,30]
[379238479,1755210341719,282522.0,0.000283,60]
[379238480,1755210385220,92000.0,0.00016438,2]
[379238481,1755210419927,150000.0,0.000191,29]
[379238482,1755210446091,97234.26469204,0.00030137,120]
[379238487,1755210551159,-160.0,0.00018891,2]
[379238488,1755210551180,-290.8,0.00019364,2]
[379238504,1755210632569,-117.2,0.00019364,2]
[379238505,1755210632579,-666.0,0.00020115,2]
[379238507,1755210632588,-360.779802,0.00020156,2]
[379238509,1755210632598,-223.428501,0.00020187,2]
[379238510,1755210632608,-843.37884167,0.00020412,2]
[379238511,1755210632617,-197.11285533,0.00020796,2]
[379238512,1755210632628,-802.88714467,0.00020796,2]
[379238513,1755210632637,-34.72561862,0.00020899,2]
[379238514,1755210632648,-1965.27438138,0.00020899,2]
[379238515,1755210632658,-480.0,0.00020997,2]
[379238516,1755210632670,-3000.0,0.00020998,2]
[379238517,1755210632679,-300.0,0.00021045,2]
[379238519,1755210632689,-4000.0,0.00021046,2]
[379238520,1755210632698,-5000.0,0.00021162,2]
[379238521,1755210632708,-460.0,0.0002124,2]
[379238522,1755210632717,-4000.0,0.00021241,2]
[379238523,1755210632727,-4000.0,0.00021388,2]
[379238524,1755210632736,-200.0,0.00021466,20]
[379238525,1755210632747,-200.0,0.00021466,20]
[379238526,1755210632756,-200.0,0.00021466,20]
[379238527,1755210632765,-200.0,0.00021466,20]
[379238528,1755210632775,-200.0,0.00021466,20]
[379238529,1755210632784,-200.0,0.00021466,20]
[379238530,1755210632794,-200.0,0.00021466,20]
[379238531,1755210632803,-200.0,0.00021466,20]
[379238532,1755210632812,-698.31096167,0.000215,2]
[379238533,1755210632822,-460.0,0.00021514,2]
[379238534,1755210632831,-379.668,0.00021599,2]
[379238535,1755210632840,-29444.75287135,0.000216,2]
[379238576,1755210640544,-71461.31722715,0.000216,2]
[379238834,1755210643603,-5882.07549406,0.000216,2]
[379238835,1755210643625,-575.33854092,0.000216,2]
[379238836,1755210643638,-2293.9,0.000216,2]
[379238847,1755210646737,-2770.0868289,0.000216,2]
[379238851,1755210760014,201.08565,0.00013699,2]
[379238859,1755211594300,911.83,0.00023,30]
[379238861,1755211673142,400.006,0.00023,30]
[379238902,1755211831930,-408.0,0.00019853,2]
[379238955,1755211832443,-201.08565,0.00020187,2]
[379238956,1755211832454,-666.0,0.00020543,2]
[379238957,1755211832464,-145.0634447,0.00020632,2]
[379238958,1755211832477,-246.0072703,0.00020632,2]
[379238959,1755211832487,-786.60981843,0.000209,2]
[379238961,1755211832500,-417.88717517,0.000209,2]
[379238964,1755211832513,-277.65680624,0.000209,2]
[379238966,1755211832523,-224.45601859,0.0002124,2]
[379238969,1755211832535,-235.54398141,0.0002124,2]
[379238972,1755211832545,-460.0,0.00021514,2]
[379238975,1755211832555,-160.0,0.00021574,2]
[379238978,1755211832566,-843.37884167,0.00021576,2]
[379238980,1755211832576,-45123.75127678,0.000216,2]
[379238982,1755211832587,-151.0,0.000216,3]
[379238985,1755211832598,-160.0,0.00021617,2]
[379238989,1755211832608,-160.0,0.00021617,2]
[379238992,1755211832618,-216.75489391,0.00021617,2]
[379238995,1755211832628,-417.15472785,0.00021617,2]
[379238998,1755211832638,-160.0,0.00021617,2]
[379239001,1755211832648,-160.0,0.00021617,2]
[379239004,1755211832658,-300.0,0.00021618,2]
[379239007,1755211832667,-232.05637125,0.00021619,2]
[379239010,1755211832678,-160.0,0.00021619,2]
[379239013,1755211832688,-161.99111265,0.00021644,2]
[379239016,1755211832698,-467.18563459,0.0002167,2]
[379239064,1755211838054,-252.43193493,0.0002167,2]
[379239065,1755211838064,-709.01991682,0.0002167,2]
[379239066,1755211838074,-500.0,0.00021673,2]
[379239067,1755211838084,-38.54814825,0.00021673,2]
[379239151,1755211839825,-461.45185175,0.00021673,2]
[379239154,1755211839835,-500.0,0.00021673,2]
[379239157,1755211839845,-500.0,0.00021673,2]
[379239160,1755211839854,-500.0,0.00021673,2]
[379239163,1755211839863,-403.94814825,0.00021673,2]
[379239353,1755211845821,-96.05185175,0.00021673,2]
[379239354,1755211845831,-500.0,0.00021673,2]
[379239355,1755211845840,-500.0,0.00021673,2]
[379239356,1755211845850,-348.69065731,0.00021673,2]
[379239357,1755211845859,-500.0,0.00021673,2]
[379239358,1755211845868,-500.0,0.00021673,2]
[379239359,1755211845877,-598.75700863,0.00021673,2]
[379239360,1755211845886,-500.0,0.00021673,2]
[379239361,1755211845895,-500.0,0.00021673,2]
[379239362,1755211845904,-500.0,0.00021673,2]
[379239363,1755211845913,-500.0,0.00021673,2]
[379239364,1755211845922,-562.49809899,0.00021673,2]
[379239365,1755211845931,-500.0,0.00021673,2]
[379239366,1755211845940,-460.0,0.00021685,2]
[379239367,1755211845950,-151.0,0.00021686,2]
[379239368,1755211845959,-16799.09951332,0.00021686,2]
[379239369,1755211845970,-1043.42293468,0.00021686,2]
[379239370,1755211845979,-303.734,0.00021698,2]
[379239371,1755211845988,-18493.3942382,0.00021699,2]
[379239372,1755211845999,-29950.4845728,0.00021699,2]
[379239373,1755211846008,-623.89469877,0.0002177,2]
[379239374,1755211846017,-161.99111265,0.00021781,2]
[379239375,1755211846026,-709.01991682,0.00021785,2]
[379239376,1755211846036,-460.0,0.00021788,2]
[379239377,1755211846048,-460.0,0.00021798,2]
[379239378,1755211846057,-460.0,0.00021798,2]
[379239379,1755211846066,-412.22447279,0.000218,2]
[379239380,1755211846075,-500.0,0.00021888,2]
[379239381,1755211846085,-500.0,0.00021888,2]
[379239382,1755211846095,-500.0,0.00021888,2]
[379239383,1755211846104,-500.0,0.00021888,2]
[379239384,1755211846114,-500.0,0.00021888,2]
[379239385,1755211846125,-406.65870962,0.00021888,2]
[379239386,1755211846134,-500.0,0.00021888,2]
[379239387,1755211846143,-500.0,0.00021888,2]
[379239388,1755211846153,-500.0,0.00021888,2]
[379239389,1755211846162,-474.24357392,0.00021888,2]
[379239390,1755211846171,-2962.9049497,0.0002189,10]
[379239392,1755211888896,247.8,0.00030137,120]
[379239397,1755212187639,180.977085,0.00013699,2]
[379239400,1755212827139,-461.9529908,0.00019595,2]
[379239401,1755212827161,-1184.92534164,0.00019599,2]
[379239402,1755212827183,-408.0,0.00019881,2]
[379239403,1755212827203,-160.0,0.0002,3]
[379239404,1755212827224,-180.977085,0.00020187,2]
[379239405,1755212827244,-312.856572,0.00020595,2]
[379239406,1755212827264,-485.642292,0.00021685,2]
[379239407,1755212827287,-367.67028001,0.00021698,2]
[379239408,1755212827307,-66.43343855,0.00021818,2]
[379239417,1755213032210,-789.95022776,0.00019598,2]
[379239418,1755213032220,-666.0,0.00020886,2]
[379239420,1755213032230,-605.39467192,0.00021383,6]
[379239422,1755213032239,-304.31483964,0.00021597,6]
[379239424,1755213032248,-629.66537333,0.000218,2]
[379239425,1755213032260,-461.9529908,0.000218,2]
[379239426,1755213032269,-214.19549277,0.00021818,2]
[379239427,1755213032278,-160.0,0.00021847,2]
[379239428,1755213032287,-216.75489391,0.00021849,2]
[379239429,1755213032297,-843.37884167,0.00021849,2]
[379239430,1755213032307,-160.0,0.00021849,2]
[379239431,1755213032316,-160.0,0.0002185,2]
[379239432,1755213032326,-1200.0,0.00021854,2]
[379239433,1755213032336,-214.19549275,0.00021859,2]
[379239435,1755213032345,-232.05637125,0.00021874,2]
[379239436,1755213032355,-660.17333058,0.00021887,2]
[379239437,1755213032366,-300.0,0.00021898,2]
[379239438,1755213032375,-242.987,0.00021899,2]
[379239439,1755213032384,-450.98627665,0.00021899,2]
[379239448,1755213037997,-9.01372335,0.00021899,2]
[379239449,1755213038007,-460.0,0.00021899,2]
[379239450,1755213038016,-883.01815147,0.000219,2]
[379239727,1755213045985,-389.42375608,0.000219,2]
[379239728,1755213046051,-3338.92068109,0.000219,2]
[379239734,1755213615217,1026.91,0.000256,120]
[379239735,1755213653308,200.0,0.00029703,120]
[379239736,1755213654356,200.0,0.00029703,120]
[379239737,1755213730477,162.879376,0.00013699,2]
[379239740,1755214045096,-657.84869078,0.000198,2]
[379239741,1755214045621,-162.879376,0.00020187,2]
[379239742,1755214045642,-408.0,0.00020411,2]
[379239743,1755214045663,-250.285257,0.00020747,2]
[379239744,1755214045682,-666.0,0.00020905,2]
[379239745,1755214045702,-0.35447622,0.0002137,2]
[379239777,1755214232306,-160.0,0.00020409,2]
[379239779,1755214232818,-605.39467192,0.00021263,6]
[379239781,1755214232827,-293.28928238,0.0002137,2]